bitfinex-derivatives/quotes_BTCF0:USTF0_20241104
["timestamp","ask_amount","ask_price","bid_price","bid_amount"]
[1730722595923,0.27377562,68992.0,68969.0,0.0323]
[1730722595924,0.072545,68975.0,68969.0,0.0323]
[1730722596122,0.072545,68975.0,68974.0,0.072544]
[1730722596327,0.072545,68974.0,68971.0,0.072548]
[1730722596548,0.072545,68974.0,68966.0,0.3608]
[1730722596735,0.072545,68974.0,68973.0,0.433346]
[1730722596944,0.072545,68974.0,68973.0,0.072546]
[1730722597234,0.072548,68971.0,68970.0,0.072548]
[1730722599328,0.001,68974.0,68969.0,0.04250859]
[1730722599529,0.001,68974.0,68966.0,0.3608]
[1730722599530,0.03917837,68973.0,68972.0,0.57274429]
[1730722599732,0.001,68974.0,68973.0,0.072546]
[1730722600040,0.072541,68978.0,68977.0,0.072542]
[1730722600242,0.11206106,68978.0,68977.0,0.072542]
[1730722601245,0.11206106,68978.0,68977.0,0.073542]
[1730722601246,0.12406106,68978.0,68977.0,0.073542]
[1730722601743,0.12406106,68978.0,68977.0,0.001]
[1730722601925,0.072547,68972.0,68971.0,0.072547]
[1730722602129,0.11206706,68972.0,68971.0,0.072547]
[1730722602634,0.072547,68972.0,68971.0,0.072547]
[1730722603231,0.072543,68976.0,68975.0,0.072543]
[1730722603425,0.3818,68978.0,68974.0,0.072545]
[1730722603426,0.072542,68978.0,68974.0,0.072545]
[1730722603642,0.072542,68978.0,68973.0,0.3608]
[1730722603643,0.072542,68978.0,68977.0,0.072542]
[1730722604525,0.072542,68978.0,68975.0,0.001]
[1730722604732,0.072543,68976.0,68975.0,0.001]
[1730722605140,0.072545,68974.0,68973.0,0.3608]
[1730722605434,0.072547,68972.0,68971.0,0.001]
[1730722605736,0.072547,68972.0,68966.0,0.3608]
[1730722605737,0.072552,68967.0,68966.0,0.3608]
[1730722607039,0.072552,68969.0,68966.0,0.3608]
[1730722607426,0.012,68967.0,68966.0,0.434353]
[1730722607827,0.024,68967.0,68966.0,0.435353]
[1730722608540,0.024,68967.0,68966.0,0.49321433]
[1730722609331,0.024,68967.0,68966.0,0.49221433]
[1730722609530,0.026,68967.0,68966.0,0.435353]
[1730722609730,0.098552,68967.0,68966.0,0.435353]
[1730722610427,0.098552,68967.0,68966.0,0.434353]
[1730722610634,0.021,68967.0,68966.0,0.435353]
[1730722614341,0.093552,68967.0,68966.0,0.435353]
[1730722618246,0.093552,68967.0,68966.0,0.3628]
[1730722618455,0.093552,68967.0,68966.0,0.4204626]
[1730722618751,0.093552,68967.0,68966.0,0.3628]
[1730722619948,0.093552,68967.0,68966.0,0.002]
[1730722621547,0.126152,68967.0,68966.0,0.002]
[1730722623047,0.126152,68967.0,68966.0,0.074553]
[1730722623352,0.093552,68967.0,68966.0,0.074553]
[1730722623845,0.093552,68967.0,68966.0,0.1322156]
[1730722624554,0.093552,68967.0,68966.0,0.074553]
[1730722626255,0.093552,68967.0,68966.0,0.002]
[1730722628358,0.093552,68967.0,68966.0,0.074553]
[1730722629656,0.021,68967.0,68966.0,0.435353]
[1730722629849,0.021,68967.0,68966.0,0.61356554]
[1730722630360,0.021,68967.0,68966.0,0.63599809]
[1730722632654,0.021,68967.0,68966.0,0.57154132]
[1730722632960,0.021,68967.0,68966.0,0.479812]
[1730722633252,0.021,68967.0,68966.0,0.119012]
[1730722636459,0.021,68967.0,68966.0,0.554012]
[1730722636965,0.07254,68979.0,68978.0,0.072538]
[1730722637175,0.11226485,68979.0,68978.0,0.072538]
[1730722638365,0.13026485,68979.0,68978.0,0.074538]
[1730722639758,0.13026485,68979.0,68978.0,0.13228934]
[1730722639759,0.09054,68979.0,68978.0,0.13228934]
[1730722639958,0.08554,68979.0,68978.0,0.13128934]
[1730722640163,0.09054,68979.0,68978.0,0.13228934]
[1730722640357,0.07754,68979.0,68978.0,0.13228934]
[1730722641577,0.07754,68979.0,68978.0,0.074538]
[1730722642171,0.005,68979.0,68978.0,0.074538]
[1730722642363,0.005,68979.0,68978.0,0.13228934]
[1730722642570,0.07754,68979.0,68978.0,0.074538]
[1730722642960,0.07754,68979.0,68978.0,0.13227139]
[1730722643468,0.07754,68979.0,68978.0,0.13227661]
[1730722643975,0.07854,68979.0,68978.0,0.13227661]
[1730722644156,0.43934,68979.0,68978.0,0.04530833]
[1730722644576,0.43934,68979.0,68978.0,0.002]
[1730722645269,0.48304568,68979.0,68978.0,0.002]
[1730722645462,0.072547,68972.0,68971.0,0.04330833]
[1730722645972,0.072548,68971.0,68970.0,0.04330833]
[1730722646371,0.07255,68969.0,68968.0,0.05773861]
[1730722646763,0.072551,68968.0,68965.0,0.13241261]
[1730722647077,0.072552,68967.0,68966.0,0.05773861]
[1730722647264,0.072553,68966.0,68965.0,0.13029261]
[1730722648075,0.072553,68966.0,68965.0,0.082554]
[1730722648776,0.072553,68966.0,68965.0,0.01]
[1730722649275,0.079553,68966.0,68965.0,0.011]
[1730722650273,0.082553,68966.0,68965.0,0.002]
[1730722652073,0.082553,68966.0,68965.0,0.074554]
[1730722652775,0.01,68966.0,68965.0,0.074554]
[1730722654972,0.01,68966.0,68965.0,0.1660301]
[1730722656276,0.01,68966.0,68965.0,0.16602897]
[1730722657082,0.01,68966.0,68965.0,0.27507383]
[1730722658374,0.082553,68966.0,68965.0,0.27507383]
[1730722659589,0.01,68966.0,68965.0,0.27507383]
[1730722660583,0.01,68966.0,68965.0,0.27518103]
[1730722662884,0.01,68966.0,68965.0,0.30578103]
[1730722663080,0.01,68966.0,68965.0,0.105154]
[1730722664384,0.0656,68985.0,68979.0,0.07254]
[1730722664678,0.07471412,68980.0,68979.0,0.07254]
[1730722665193,0.00217512,68980.0,68979.0,0.07254]
[1730722665381,0.07471412,68980.0,68979.0,0.07254]
[1730722665686,0.07471412,68980.0,68979.0,0.07354]
[1730722665890,0.08071412,68980.0,68979.0,0.07354]
[1730722666187,0.08071412,68980.0,68979.0,0.11697345]
[1730722666586,0.08071412,68980.0,68979.0,0.07354]
[1730722666782,0.08071412,68980.0,68979.0,0.001]
[1730722667082,0.08071412,68980.0,68979.0,0.07454]
[1730722667478,0.08071412,68980.0,68979.0,0.07354]
[1730722667678,0.08071412,68980.0,68979.0,0.07454]
[1730722668084,0.07471412,68980.0,68979.0,0.07354]
[1730722668287,0.07471412,68980.0,68979.0,0.07454]
[1730722670584,0.07471412,68980.0,68979.0,0.07354]
[1730722670883,0.07471412,68980.0,68979.0,0.07454]
[1730722673183,0.00217512,68980.0,68979.0,0.07454]
[1730722676994,0.00217512,68980.0,68979.0,0.07354]
[1730722677289,0.00217512,68980.0,68979.0,0.07454]
[1730722677501,0.072535,68984.0,68983.0,0.072535]
[1730722678393,0.0323,68985.0,68984.0,0.072534]
[1730722678592,0.0313,68989.0,68984.0,0.072534]
[1730722678786,0.0313,68989.0,68988.0,0.07253]
[1730722679695,0.0313,68989.0,68988.0,0.11583874]
[1730722680289,0.0313,68989.0,68988.0,0.11683874]
[1730722681693,0.0313,68989.0,68988.0,0.11783874]
[1730722682294,0.0313,68989.0,68988.0,0.07453]
[1730722682490,0.0313,68989.0,68988.0,0.11781604]
[1730722682695,0.0313,68989.0,68988.0,0.07453]
[1730722683198,0.0313,68989.0,68988.0,0.11781581]
[1730722683498,0.0313,68989.0,68988.0,0.11780907]
[1730722683803,0.0608,68998.0,68988.0,0.14139729]
[1730722683990,0.0608,68998.0,68997.0,0.072521]
[1730722684190,0.03277459,69003.0,68997.0,0.072521]
[1730722684494,0.03277459,69003.0,69002.0,0.072516]
[1730722684495,0.00217459,69003.0,69002.0,0.072516]
[1730722685192,0.09064954,69003.0,69002.0,0.072516]
[1730722685386,0.04311538,69003.0,69002.0,0.072516]
[1730722685900,0.0888067,69003.0,69002.0,0.072516]
[1730722686108,0.04094079,69003.0,69002.0,0.072516]
[1730722686406,0.433301,69016.0,69015.0,0.072502]
[1730722686696,0.52300677,69016.0,69015.0,0.072502]
[1730722686902,0.45050577,69016.0,69015.0,0.072502]
[1730722687898,0.45211017,69016.0,69015.0,0.072502]
[1730722688105,0.45211017,69016.0,69015.0,0.074502]
[1730722688291,0.47641573,69016.0,69015.0,0.074502]
[1730722688802,0.47641573,69016.0,69015.0,0.073502]
[1730722689103,0.52439577,69016.0,69015.0,0.074502]
[1730722689286,0.45189477,69016.0,69015.0,0.074502]
[1730722689491,0.04311473,69016.0,69015.0,0.435302]
[1730722690497,0.04315829,69016.0,69015.0,0.435302]
[1730722690697,0.0016044,69016.0,69015.0,0.435302]
[1730722694198,0.0741054,69016.0,69015.0,0.3628]
[1730722694499,0.8695854,69016.0,69015.0,0.002]
[1730722694700,0.07251,69007.0,69006.0,0.072511]
[1730722694908,0.0741144,69007.0,69006.0,0.072511]
[1730722696508,0.0741144,69007.0,69006.0,0.073511]
[1730722697699,0.0741144,69007.0,69006.0,0.074511]
[1730722698808,0.0741144,69007.0,69006.0,0.002]
[1730722699807,0.0741144,69007.0,69006.0,0.074511]
[1730722700411,0.0741144,69007.0,69006.0,0.002]
[1730722700412,0.11521292,69007.0,69006.0,0.002]
[1730722702803,0.11521292,69007.0,69006.0,0.074511]
[1730722703600,0.1630417,69007.0,69006.0,0.074511]
[1730722704205,0.1630417,69007.0,69006.0,0.002]
[1730722704811,0.11528712,69007.0,69006.0,0.002]
[1730722705016,0.59783953,69007.0,69001.0,0.00217386]
[1730722705313,0.072516,69002.0,69001.0,0.07468986]
[1730722705500,0.11368872,69002.0,69001.0,0.07468986]
[1730722705909,0.11529312,69002.0,69001.0,0.07468986]
[1730722706311,0.04277712,69002.0,69001.0,0.07468986]
[1730722706699,0.09048549,69002.0,69001.0,0.07568986]
[1730722706904,0.04277712,69002.0,69001.0,0.07568986]
[1730722707114,0.04277712,69002.0,69001.0,0.07468986]
[1730722707412,0.04377712,69002.0,69001.0,0.07568986]
[1730722707912,0.04377712,69002.0,69001.0,0.07668986]
[1730722708301,0.0026044,69002.0,69001.0,0.07668986]
[1730722708504,0.0026044,69002.0,69001.0,0.07568986]
[1730722708713,0.0046044,69002.0,69001.0,0.07568986]
[1730722709011,0.46549371,69021.0,69006.0,0.072511]
[1730722709204,0.072502,69017.0,69016.0,0.0725]
[1730722710506,0.074502,69017.0,69016.0,0.001]
[1730722711920,0.074502,69017.0,69016.0,0.002]
[1730722713718,0.509182,69017.0,69016.0,0.002]
[1730722715223,0.55051014,69017.0,69016.0,0.002]
[1730722717224,0.11583014,69017.0,69016.0,0.002]
[1730722719828,0.11583014,69017.0,69001.0,0.00217386]
[1730722719829,0.072516,69002.0,69001.0,0.00217386]
[1730722720320,0.072526,68992.0,68991.0,0.3608]
[1730722720521,0.072526,68992.0,68985.0,0.072533]
[1730722720726,0.072532,68986.0,68985.0,0.072533]
[1730722722331,0.11265593,68986.0,68985.0,0.072533]
[1730722722915,0.1126448,68986.0,68985.0,0.072533]
[1730722723113,0.072537,68982.0,68981.0,0.0312]
[1730722723431,0.11268324,68982.0,68981.0,0.0312]
[1730722723631,0.11268324,68982.0,68981.0,0.103738]
[1730722724317,0.11268324,68982.0,68981.0,0.112738]
[1730722725028,0.11268324,68982.0,68981.0,0.0532]
[1730722725218,0.25208053,68982.0,68981.0,0.022]
[1730722725925,0.11268324,68982.0,68981.0,0.022]
[1730722726229,0.04014624,68982.0,68981.0,0.094538]
[1730722726728,0.072531,68988.0,68987.0,0.072531]
[1730722726931,0.11271634,68988.0,68987.0,0.072531]
[1730722727222,0.04018534,68988.0,68987.0,0.072531]
[1730722727744,0.04018534,68988.0,68987.0,0.21192829]
[1730722728029,0.072527,68991.0,68990.0,0.072528]
[1730722728239,0.112823,68991.0,68990.0,0.072528]
[1730722728541,0.072523,68996.0,68989.0,0.3608]
[1730722728719,0.072523,68996.0,68995.0,0.072522]
[1730722728916,0.11287006,68996.0,68995.0,0.072522]
[1730722729920,0.11446242,68996.0,68995.0,0.072522]
[1730722730218,0.07411536,68996.0,68995.0,0.072522]
[1730722730420,0.07511536,68996.0,68995.0,0.073522]
[1730722730618,0.07591154,68996.0,68995.0,0.073522]
[1730722731724,0.07591154,68996.0,68995.0,0.072522]
[1730722732433,0.00418472,68996.0,68995.0,0.072522]
[1730722732823,0.07670672,68996.0,68995.0,0.072522]
[1730722733025,0.07670672,68996.0,68989.0,0.08836537]
[1730722733335,0.072528,68991.0,68990.0,0.072526]
[1730722734420,0.07571272,68991.0,68990.0,0.072526]
[1730722735328,0.07671272,68991.0,68990.0,0.074526]
[1730722736631,0.07671272,68991.0,68990.0,0.072526]
[1730722736833,0.07671272,68991.0,68990.0,0.076526]
[1730722737635,0.07671272,68991.0,68990.0,0.075526]
[1730722738635,0.00418472,68991.0,68990.0,0.073526]
[1730722740142,0.00418472,68991.0,68990.0,0.075526]
[1730722740437,0.00318472,68991.0,68990.0,0.082526]
[1730722740944,0.00318472,68991.0,68990.0,0.079526]
[1730722741137,0.00318472,68991.0,68990.0,0.090526]
[1730722741542,0.00318472,68991.0,68990.0,0.089526]
[1730722742431,0.00376653,68991.0,68990.0,0.089526]
[1730722742634,0.00376653,68991.0,68990.0,0.450326]
[1730722743148,0.072519,68999.0,68998.0,0.072519]
[1730722743439,0.11332891,68999.0,68998.0,0.072519]
[1730722744041,0.16083778,68999.0,68998.0,0.072519]
[1730722744646,0.16183778,68999.0,68998.0,0.073519]
[1730722745642,0.073519,68999.0,68998.0,0.11672887]
[1730722746843,0.001,68999.0,68998.0,0.11672887]
[1730722747340,0.001,68999.0,68998.0,0.073519]
[1730722747743,0.001,68999.0,68998.0,0.105019]
[1730722748131,0.001,68999.0,68998.0,0.62956572]
[1730722748944,0.001,68999.0,68998.0,0.6294985]
[1730722749649,0.001,68999.0,68998.0,0.1946985]
[1730722749940,0.072514,69004.0,69003.0,0.072514]
[1730722751141,0.072514,69004.0,69003.0,0.073514]
[1730722751344,0.073514,69004.0,69003.0,0.074514]
[1730722752036,0.001,69004.0,69003.0,0.074514]
[1730722752532,0.0422899,69004.0,69003.0,0.074514]
[1730722753847,0.1148029,69004.0,69003.0,0.074514]
[1730722755448,0.16263204,69004.0,69003.0,0.002]
[1730722755744,0.16209256,69004.0,69003.0,0.002]
[1730722756053,0.16209256,69004.0,69003.0,0.074514]
[1730722758135,0.073513,69004.0,69003.0,0.074514]
[1730722758336,0.16197217,69004.0,69003.0,0.074514]
[1730722758547,0.16197217,69004.0,69003.0,0.002]
[1730722760451,0.073513,69004.0,69003.0,0.002]
[1730722761937,0.073513,69004.0,69003.0,0.074514]
[1730722762333,0.073513,69004.0,69003.0,0.1176805]
[1730722762550,0.073513,69004.0,69003.0,0.0451665]
[1730722762551,0.434313,69004.0,69003.0,0.0451665]
[1730722762744,0.434313,69004.0,69003.0,0.002]
[1730722766847,0.47797481,69004.0,69003.0,0.002]
[1730722768450,0.47912553,69004.0,69003.0,0.002]
[1730722770361,0.47994102,69004.0,69003.0,0.002]
[1730722770654,0.48021352,69004.0,69003.0,0.002]
[1730722774854,0.91497352,69004.0,69003.0,0.002]
[1730722775052,0.072523,68995.0,68994.0,0.0431665]
[1730722775252,0.072523,68995.0,68992.0,0.072526]
[1730722775253,0.072524,68994.0,68993.0,0.0431665]
[1730722775451,0.072524,68994.0,68992.0,0.072526]
[1730722775452,0.04065175,68994.0,68992.0,0.072526]
[1730722775662,0.11541546,68993.0,68992.0,0.072526]
[1730722776950,0.11541546,68993.0,68992.0,0.11688954]
[1730722777152,0.11541546,68993.0,68992.0,0.12488954]
[1730722778060,0.11541546,68993.0,68992.0,0.008]
[1730722778061,0.25484569,68993.0,68992.0,0.008]
[1730722778257,0.25484569,68993.0,68992.0,0.02]
[1730722779053,0.25484569,68993.0,68992.0,0.008]
[1730722779260,0.25484569,68993.0,68992.0,0.01]
[1730722779472,0.29774177,68993.0,68992.0,0.01]
[1730722780061,0.072538,68981.0,68980.0,0.04411533]
[1730722780357,0.072539,68980.0,68979.0,0.3628]
[1730722780660,0.072542,68977.0,68976.0,0.072543]
[1730722781160,0.072542,68977.0,68976.0,0.1160879]
[1730722781763,0.07478071,68977.0,68976.0,0.1160879]
[1730722782463,0.07578071,68977.0,68976.0,0.30745216]
[1730722783062,0.07578071,68977.0,68976.0,0.32145216]
[1730722784464,0.07578071,68977.0,68976.0,0.23473621]
[1730722785663,0.07660924,68977.0,68976.0,0.16219321]
[1730722785866,0.07660924,68977.0,68976.0,0.11864831]
[1730722786052,0.07660924,68977.0,68976.0,0.11884176]
[1730722786256,0.07660924,68977.0,68976.0,0.19092303]
[1730722786456,0.07743777,68977.0,68976.0,0.10008127]
[1730722787359,0.07743777,68977.0,68976.0,0.028]
[1730722788164,0.07776835,68977.0,68976.0,0.028]
[1730722788464,0.61524835,68977.0,68976.0,0.028]
[1730722789559,0.61524835,68977.0,68976.0,0.014]
[1730722789864,0.61524835,68977.0,68976.0,0.028]
[1730722790954,0.61424835,68977.0,68976.0,0.014]
[1730722791156,0.61524835,68977.0,68976.0,0.028]
[1730722794166,0.18032835,68977.0,68976.0,0.028]
[1730722794564,0.07776835,68977.0,68976.0,0.028]
[1730722795860,0.07776835,68977.0,68976.0,0.07125128]
[1730722796062,0.07776835,68977.0,68976.0,0.028]
[1730722800873,0.07776835,68977.0,68976.0,0.100543]
[1730722801273,0.00522635,68977.0,68976.0,0.100543]
[1730722801467,0.00522635,68977.0,68976.0,0.535463]
[1730722801867,0.00605896,68977.0,68976.0,0.535463]
[1730722809671,0.00605896,68977.0,68976.0,0.100543]
[1730722810980,0.07860096,68977.0,68976.0,0.100543]
[1730722811368,0.00605896,68977.0,68976.0,0.100543]
[1730722811883,0.07860096,68977.0,68976.0,0.100543]
[1730722813183,0.00605896,68977.0,68976.0,0.100543]
[1730722813781,0.00622721,68977.0,68976.0,0.100543]
[1730722814289,0.07876921,68977.0,68976.0,0.100543]
[1730722815474,0.00622721,68977.0,68976.0,0.100543]
[1730722816690,0.07876921,68977.0,68976.0,0.100543]
[1730722817472,0.2181665,68977.0,68976.0,0.028]
[1730722817982,0.25815407,68977.0,68976.0,0.028]
[1730722818288,0.11860904,68977.0,68976.0,0.028]
[1730722818789,0.55352904,68977.0,68976.0,0.028]
[1730722819879,0.07876921,68977.0,68976.0,0.028]
[1730722828098,0.11826934,68977.0,68976.0,0.028]
[1730722829584,0.11826934,68977.0,68976.0,0.100543]
[1730722832795,0.11845765,68977.0,68976.0,0.100543]
[1730722833996,0.11846717,68977.0,68976.0,0.100543]
[1730722835088,0.07876921,68977.0,68976.0,0.100543]
[1730722838192,0.07876921,68977.0,68976.0,0.15823997]
[1730722839595,0.07876921,68977.0,68976.0,0.15828464]
[1730722840198,0.07876921,68977.0,68976.0,0.100543]
[1730722842897,0.11854475,68977.0,68976.0,0.100543]
[1730722844799,0.11855867,68977.0,68976.0,0.100543]
[1730722847396,0.04601667,68977.0,68976.0,0.19201162]
[1730722847596,0.072532,68989.0,68988.0,0.072529]
[1730722847795,0.11278182,68989.0,68988.0,0.072529]
[1730722848909,0.11278182,68989.0,68988.0,0.073529]
[1730722850099,0.075532,68989.0,68988.0,0.073529]
[1730722850301,0.075532,68989.0,68988.0,0.001]
[1730722850504,0.2148897,68989.0,68988.0,0.001]
[1730722850899,0.5756897,68989.0,68988.0,0.001]
[1730722861319,1.0105297,68989.0,68988.0,0.001]
[1730722864308,0.5756897,68989.0,68988.0,0.001]
[1730722864514,0.436332,68989.0,68988.0,0.001]
[1730722865011,0.58101429,68989.0,68988.0,0.001]
[1730722866420,0.72028619,68989.0,68988.0,0.001]
[1730722870616,1.15512619,68989.0,68988.0,0.001]
[1730722871323,1.19870879,68989.0,68988.0,0.001]
[1730722872819,1.35777383,68989.0,68988.0,0.001]
[1730722873115,1.21317734,68989.0,68988.0,0.001]
[1730722873315,1.0541123,68989.0,68988.0,0.001]
[1730722874513,0.6192723,68989.0,68988.0,0.001]
[1730722874717,1.0541123,68989.0,68988.0,0.001]
[1730722876322,0.6192723,68989.0,68988.0,0.001]
[1730722877918,0.9815803,68989.0,68977.0,0.04333132]
[1730722878113,0.9815803,68989.0,68974.0,0.04333132]
[1730722878114,0.45227015,68978.0,68974.0,0.04333132]
[1730722878324,0.09147015,68975.0,68974.0,0.04333132]
[1730722878630,0.09147015,68975.0,68973.0,0.0739076]
[1730722878631,0.072545,68974.0,68973.0,0.0739076]
[1730722878812,0.072545,68974.0,68973.0,0.0306]
[1730722880128,0.11353023,68974.0,68973.0,0.0306]
[1730722880418,0.11353362,68974.0,68973.0,0.0306]
[1730722880924,0.11353362,68974.0,68973.0,0.0516]
[1730722880925,0.11453362,68974.0,68973.0,0.0516]
[1730722881128,0.25343248,68974.0,68973.0,0.021]
[1730722881628,0.16196233,68974.0,68973.0,0.021]
[1730722882024,0.11453362,68974.0,68973.0,0.021]
[1730722882218,0.20539693,68974.0,68973.0,0.021]
[1730722882525,0.79804232,68974.0,68973.0,0.021]
[1730722882716,0.75453362,68974.0,68973.0,0.021]
[1730722883126,0.11453362,68974.0,68973.0,0.021]
[1730722884914,0.11444698,68974.0,68973.0,0.021]
[1730722886331,0.47524698,68974.0,68973.0,0.021]
[1730722887030,0.11444698,68974.0,68973.0,0.0835]
[1730722887320,0.073545,68974.0,68973.0,0.0835]
[1730722887631,0.11469207,68974.0,68973.0,0.156046]
[1730722888018,0.073545,68974.0,68973.0,0.21382109]
[1730722888215,0.073545,68974.0,68973.0,0.156046]
[1730722888527,0.072543,68976.0,68973.0,0.24579979]
[1730722888726,0.09147015,68983.0,68975.0,0.52481415]
[1730722889025,0.072537,68982.0,68981.0,0.072537]
[1730722890538,0.076537,68982.0,68981.0,0.072537]
[1730722891029,0.084537,68982.0,68981.0,0.001]
[1730722891633,0.084537,68982.0,68981.0,0.073538]
[1730722892432,0.080537,68982.0,68981.0,0.13119658]
[1730722892633,0.080537,68982.0,68981.0,0.13419658]
[1730722892836,0.072537,68982.0,68981.0,0.13319658]
[1730722893230,0.072537,68982.0,68981.0,0.17707579]
[1730722893631,0.073537,68982.0,68981.0,0.17707579]
[1730722893838,0.073537,68982.0,68981.0,0.17407579]
[1730722894026,0.073537,68982.0,68981.0,0.17707579]
[1730722894428,0.073537,68982.0,68981.0,0.13319658]
[1730722895538,0.12311137,68982.0,68981.0,0.13719658]
[1730722895733,0.12311137,68982.0,68981.0,0.14019658]
[1730722896041,0.12311137,68982.0,68981.0,0.082538]
[1730722896042,0.16580936,68982.0,68981.0,0.082538]
[1730722896239,0.16480936,68982.0,68981.0,0.075538]
[1730722896441,0.16580936,68982.0,68981.0,0.081538]
[1730722896628,0.16580936,68982.0,68981.0,0.086538]
[1730722897038,0.09227236,68982.0,68981.0,0.433338]
[1730722897223,0.04369799,68982.0,68981.0,0.443338]
[1730722897423,0.001,68982.0,68981.0,0.443338]
[1730722898842,0.001,68982.0,68981.0,0.446338]
[1730722899435,0.001,68982.0,68981.0,0.448338]
[1730722899739,0.072534,68985.0,68984.0,0.072534]
[1730722900529,0.072531,68988.0,68987.0,0.072528]
[1730722901932,0.11571993,68988.0,68987.0,0.072528]
[1730722902240,0.072531,68988.0,68987.0,0.072528]
[1730722903133,0.080531,68988.0,68987.0,0.073528]
[1730722903439,0.080531,68988.0,68987.0,0.078528]
[1730722903639,0.072531,68988.0,68987.0,0.077528]
[1730722903942,0.073531,68988.0,68987.0,0.005]
[1730722904439,0.073531,68988.0,68987.0,0.077531]
[1730722904943,0.073531,68988.0,68987.0,0.073531]
[1730722905739,0.073531,68988.0,68987.0,0.072531]
[1730722906044,0.080531,68988.0,68987.0,0.072531]
[1730722906437,0.077531,68988.0,68987.0,0.072531]
[1730722906635,0.073531,68988.0,68987.0,0.084531]
[1730722907640,0.073531,68988.0,68987.0,0.080531]
[1730722907836,0.21290234,68988.0,68987.0,0.012]
[1730722908141,0.21290234,68988.0,68987.0,0.004]
[1730722908142,0.21190234,68988.0,68987.0,0.004]
[1730722908346,0.21290234,68988.0,68987.0,0.012]
[1730722908936,0.21290234,68988.0,68987.0,0.004]
[1730722909142,0.21190234,68988.0,68983.0,0.072535]
[1730722909337,0.072534,68984.0,68983.0,0.072535]
[1730722909543,0.21190234,68988.0,68981.0,0.3608]
[1730722909844,0.072537,68982.0,68981.0,0.433337]
[1730722911531,0.072537,68982.0,68981.0,0.3608]
[1730722911738,0.21190834,68982.0,68981.0,0.3608]
[1730722912036,0.21190834,68982.0,68981.0,0.3638]
[1730722912236,0.85190834,68982.0,68981.0,0.3638]
[1730722912847,0.21190834,68982.0,68981.0,0.3638]
[1730722913238,0.21390834,68982.0,68981.0,0.3618]
[1730722913937,0.21390834,68982.0,68981.0,0.001]
[1730722913938,0.57470834,68982.0,68981.0,0.001]
[1730722915550,0.57470834,68982.0,68967.0,0.072552]
[1730722915551,0.072551,68968.0,68967.0,0.04325464]
[1730722915847,0.072551,68968.0,68964.0,0.05765858]
[1730722915848,0.072554,68965.0,68964.0,0.0432967]
[1730722916344,0.072555,68964.0,68963.0,0.15910428]
[1730722916549,0.13937134,68965.0,68961.0,0.0432967]
[1730722916750,0.072557,68963.0,68961.0,0.0432967]
[1730722916950,0.072557,68963.0,68962.0,0.07473303]
[1730722917853,0.002,68968.0,68967.0,0.072552]
[1730722918045,0.002,68968.0,68967.0,0.433352]
[1730722918242,0.001,68968.0,68967.0,0.433352]
[1730722918641,0.072547,68972.0,68967.0,0.433352]
[1730722918853,0.072547,68972.0,68971.0,0.072548]
[1730722920152,0.073547,68972.0,68971.0,0.086548]
[1730722922348,0.074547,68972.0,68971.0,0.098548]
[1730722922854,0.002,68972.0,68971.0,0.098548]
[1730722923951,0.002,68972.0,68971.0,0.533508]
[1730722924141,0.3608,68987.0,68982.0,0.072533]
[1730722924142,0.072536,68983.0,68982.0,0.072533]
[1730722925555,0.076536,68983.0,68982.0,0.072533]
[1730722925753,0.084536,68983.0,68982.0,0.073533]
[1730722926148,0.084536,68983.0,68982.0,0.001]
[1730722926867,0.084536,68983.0,68982.0,0.073537]
[1730722927051,0.084536,68983.0,68982.0,0.11682158]
[1730722930153,0.084536,68983.0,68982.0,0.073537]
[1730722930358,0.084536,68983.0,68982.0,0.11682158]
[1730722931160,0.084536,68983.0,68982.0,0.073537]
[1730722935160,0.012,68983.0,68982.0,0.073537]
[1730722935656,0.012,68983.0,68982.0,0.59987332]
[1730722935973,0.012,68983.0,68982.0,0.508417]
[1730722936175,0.012,68983.0,68982.0,0.56607558]
[1730722936457,0.012,68983.0,68982.0,0.508417]
[1730722936762,0.012,68983.0,68982.0,0.59987332]
[1730722937059,0.012,68983.0,68982.0,0.63017332]
[1730722937365,0.012,68983.0,68982.0,0.67805751]
[1730722940166,0.13934051,69002.0,68995.0,0.072523]
[1730722940464,0.3608,69005.0,68999.0,0.072517]
[1730722940650,0.072515,69003.0,69002.0,0.072514]
[1730722940854,0.04368447,69003.0,68999.0,0.072517]
[1730722941055,0.0304,69008.0,69007.0,0.07251]
[1730722941255,0.11628058,69008.0,69007.0,0.07251]
[1730722941857,0.072509,69008.0,69007.0,0.07251]
[1730722942550,0.072506,69011.0,69010.0,0.072506]
[1730722943061,0.11661508,69011.0,69010.0,0.072506]
[1730722943562,0.11661508,69011.0,69007.0,0.07451]
[1730722943563,0.3919,69012.0,69011.0,0.072506]
[1730722943954,0.464405,69012.0,69011.0,0.072506]
[1730722945151,0.468405,69012.0,69011.0,0.073506]
[1730722945565,0.468405,69012.0,69011.0,0.074506]
[1730722947071,0.3959,69012.0,69011.0,0.074506]
[1730722947572,0.468405,69012.0,69011.0,0.074506]
[1730722948056,0.468405,69012.0,69011.0,0.002]
[1730722948057,0.60774551,69012.0,69011.0,0.002]
[1730722948257,0.072514,69006.0,69005.0,0.072512]
[1730722949464,0.076514,69006.0,69005.0,0.073512]
[1730722949660,0.57665451,69006.0,69005.0,0.002]
[1730722952369,0.072519,68999.0,68998.0,0.07252]
[1730722954372,0.078519,68999.0,68998.0,0.07352]
[1730722954872,0.006,68999.0,68998.0,0.07352]
[1730722955971,0.009,68999.0,68998.0,0.07452]
[1730722958560,0.081519,68999.0,68998.0,0.07452]
[1730722962574,0.009,68999.0,68998.0,0.07452]
[1730722965379,0.081519,68999.0,68998.0,0.07452]
[1730722966383,0.009,68999.0,68998.0,0.07452]
[1730722967190,0.081519,68999.0,68998.0,0.07452]
[1730722968992,0.22085951,68999.0,68980.0,0.3608]
[1730722969180,0.072528,68990.0,68980.0,0.3608]